[Event "GrandPrix_30.05"]
[Site "Chess.com"]
[Date "2020.05.30"]
[Round "4"]
[White "Lion_DL"]
[Black "Yuri202062"]
[Result "0-1"]
[WhiteElo "2076"]
[BlackElo "2041"]
[TimeControl "600+2"]
[EndTime "9:53:36 PDT"]
[Termination "Yuri202062 won by resignation"]

1. e4 {[%clk 0:10:01.9]} 1... c5 {[%clk 0:10:00.7]} 2. Nf3 {[%clk 0:10:02.2]}
2... e6 {[%clk 0:10:01.8]} 3. d3 {[%clk 0:10:02.5]} 3... Nc6 {[%clk 0:09:59.1]}
4. g3 {[%clk 0:10:03.1]} 4... g6 {[%clk 0:09:54.7]} 5. Bg5 {[%clk 0:10:02.3]}
5... Qb6 {[%clk 0:09:40.9]} 6. Nbd2 {[%clk 0:10:02.5]} 6... d6 {[%clk 0:09:31]}
7. Nc4 {[%clk 0:09:42.5]} 7... Qc7 {[%clk 0:09:30.9]} 8. a4 {[%clk 0:09:36.1]}
8... Bg7 {[%clk 0:09:27.4]} 9. Bf4 {[%clk 0:09:13.9]} 9... e5 {[%clk 0:09:26.7]}
10. Be3 {[%clk 0:09:10.6]} 10... Nge7 {[%clk 0:09:24.4]} 11. Bg2 {[%clk
0:09:07.7]} 11... h6 {[%clk 0:09:13.1]} 12. c3 {[%clk 0:09:05.8]} 12... Be6
{[%clk 0:09:02.2]} 13. Qd2 {[%clk 0:08:57.4]} 13... f5 {[%clk 0:08:49.4]} 14.
O-O {[%clk 0:07:56.9]} 14... fxe4 {[%clk 0:08:35]} 15. Ne1 {[%clk 0:07:19.3]}
15... exd3 {[%clk 0:08:18.1]} 16. Qxd3 {[%clk 0:07:20.1]} 16... d5 {[%clk
0:08:16.8]} 17. Na3 {[%clk 0:07:18.2]} 17... c4 {[%clk 0:08:08.9]} 18. Qd2
{[%clk 0:06:59.8]} 18... a6 {[%clk 0:07:51]} 19. Rd1 {[%clk 0:06:48.7]} 19...
Rd8 {[%clk 0:07:42.7]} 20. Nec2 {[%clk 0:05:55.7]} 20... Nf5 {[%clk 0:07:31.8]}
21. Qe2 {[%clk 0:04:56.3]} 21... O-O {[%clk 0:07:24.6]} 22. Bc5 {[%clk
0:04:55.7]} 22... Rfe8 {[%clk 0:07:14.1]} 23. Ne3 {[%clk 0:04:56.8]} 23... Nce7
{[%clk 0:06:17.9]} 24. Bxe7 {[%clk 0:04:29.4]} 24... Nxe7 {[%clk 0:06:01.6]} 25.
f4 {[%clk 0:03:28]} 25... Qc5 {[%clk 0:04:53.2]} 26. fxe5 {[%clk 0:03:14.1]}
26... Nf5 {[%clk 0:04:44.9]} 27. Nc2 {[%clk 0:03:14.2]} 27... Bf7 {[%clk
0:04:23.4]} 28. Qf2 {[%clk 0:02:37]} 28... Rxe5 {[%clk 0:03:34.5]} 29. Nxf5
{[%clk 0:02:09.7]} 29... Qxf2+ {[%clk 0:03:32.4]} 30. Rxf2 {[%clk 0:02:11.6]}
30... Rxf5 {[%clk 0:03:15.5]} 31. Rxf5 {[%clk 0:02:08.5]} 31... gxf5 {[%clk
0:03:16.4]} 32. Ne3 {[%clk 0:02:09.8]} 32... d4 {[%clk 0:02:52.9]} 33. Nxf5
{[%clk 0:02:04.1]} 33... d3 {[%clk 0:02:53.7]} 34. Nxg7 {[%clk 0:01:01.2]} 34...
Kxg7 {[%clk 0:02:53.1]} 35. a5 {[%clk 0:01:03.1]} 35... Bd5 {[%clk 0:02:33.9]}
36. Bxd5 {[%clk 0:00:51]} 36... Rxd5 {[%clk 0:02:34.4]} 37. Kf2 {[%clk
0:00:52.9]} 37... Rxa5 {[%clk 0:02:32.8]} 38. Ke3 {[%clk 0:00:54]} 38... Ra2
{[%clk 0:02:00.6]} 39. Rb1 {[%clk 0:00:19.7]} 39... b5 {[%clk 0:01:30.5]} 40. h3
{[%clk 0:00:16]} 40... a5 {[%clk 0:01:30.7]} 41. Kd4 {[%clk 0:00:15.8]} 41... d2
{[%clk 0:01:21.8]} 42. Kc5 {[%clk 0:00:15.3]} 42... Rxb2 {[%clk 0:01:21.9]} 43.
Rd1 {[%clk 0:00:15.2]} 43... a4 {[%clk 0:01:21.5]} 0-1

[Event "GrandPrix_30.05"]
[Site "Chess.com"]
[Date "2020.05.30"]
[Round "4"]
[White "rasmussvane"]
[Black "Frozygul"]
[Result "1-0"]
[WhiteElo "2502"]
[BlackElo "2168"]
[TimeControl "600+2"]
[EndTime "9:53:42 PDT"]
[Termination "rasmussvane won by resignation"]

1. Nf3 {[%clk 0:10:01.9]} 1... c5 {[%clk 0:09:57.9]} 2. c4 {[%clk 0:10:02.2]}
2... Nc6 {[%clk 0:09:57.6]} 3. Nc3 {[%clk 0:10:02.6]} 3... g6 {[%clk 0:09:58.8]}
4. e3 {[%clk 0:10:03.3]} 4... Bg7 {[%clk 0:09:59.9]} 5. d4 {[%clk 0:10:04.8]}
5... cxd4 {[%clk 0:10:00.7]} 6. exd4 {[%clk 0:10:06.7]} 6... d6 {[%clk
0:10:01.9]} 7. Be2 {[%clk 0:10:07.8]} 7... Nf6 {[%clk 0:10:02.8]} 8. h3 {[%clk
0:10:07.8]} 8... O-O {[%clk 0:10:03.2]} 9. O-O {[%clk 0:10:09.3]} 9... e5 {[%clk
0:09:40.2]} 10. dxe5 {[%clk 0:09:37]} 10... dxe5 {[%clk 0:09:07.5]} 11. Be3
{[%clk 0:09:38]} 11... Be6 {[%clk 0:09:00.9]} 12. Qb3 {[%clk 0:08:10.8]} 12...
Na5 {[%clk 0:05:15.3]} 13. Qb4 {[%clk 0:07:33.4]} 13... b6 {[%clk 0:04:27.5]}
14. Nxe5 {[%clk 0:06:51.8]} 14... Nd7 {[%clk 0:04:06.4]} 15. Nxd7 {[%clk
0:06:33.6]} 15... Qxd7 {[%clk 0:04:08.3]} 16. Rad1 {[%clk 0:06:28.3]} 16... Qc8
{[%clk 0:03:56.1]} 17. Nd5 {[%clk 0:06:14.6]} 17... Bxd5 {[%clk 0:03:21.7]} 18.
cxd5 {[%clk 0:05:49.2]} 18... Rd8 {[%clk 0:03:08.3]} 19. d6 {[%clk 0:05:22.4]}
19... Be5 {[%clk 0:02:53.9]} 20. Rd5 {[%clk 0:04:26.1]} 20... Qc2 {[%clk
0:02:48.5]} 21. Rxe5 {[%clk 0:02:44]} 21... Qxe2 {[%clk 0:01:45.3]} 22. Re1
{[%clk 0:01:50.9]} 22... Nc6 {[%clk 0:01:28.1]} 23. Qc3 {[%clk 0:00:37.7]} 23...
Qxe1+ {[%clk 0:01:15.4]} 24. Qxe1 {[%clk 0:00:39.6]} 24... Nxe5 {[%clk
0:01:16.7]} 25. Bg5 {[%clk 0:00:33.9]} 25... Re8 {[%clk 0:00:43.3]} 26. Qe4
{[%clk 0:00:34.2]} 26... Kg7 {[%clk 0:00:24.6]} 27. Qf4 {[%clk 0:00:13.2]} 27...
f5 {[%clk 0:00:23.7]} 28. Qd4 {[%clk 0:00:12]} 28... Kf7 {[%clk 0:00:21.8]} 29.
d7 {[%clk 0:00:11]} 29... Nxd7 {[%clk 0:00:11.2]} 30. Qxd7+ {[%clk 0:00:11.7]}
1-0

[Event "GrandPrix_30.05"]
[Site "Chess.com"]
[Date "2020.05.30"]
[Round "4"]
[White "Artur0208"]
[Black "Promacherr"]
[Result "0-1"]
[WhiteElo "2236"]
[BlackElo "2167"]
[TimeControl "600+2"]
[EndTime "9:53:53 PDT"]
[Termination "Promacherr won by checkmate"]

1. d4 {[%clk 0:10:01.2]} 1... d5 {[%clk 0:09:59.4]} 2. c4 {[%clk 0:10:00.4]}
2... c6 {[%clk 0:10:00.6]} 3. Nf3 {[%clk 0:09:58.8]} 3... Nf6 {[%clk 0:10:01.9]}
4. Nc3 {[%clk 0:09:56.8]} 4... dxc4 {[%clk 0:10:02.6]} 5. a4 {[%clk 0:09:56.9]}
5... Bf5 {[%clk 0:10:03.3]} 6. Ne5 {[%clk 0:09:57.3]} 6... Nbd7 {[%clk
0:10:03.2]} 7. Nxc4 {[%clk 0:09:58.1]} 7... Nb6 {[%clk 0:10:04.7]} 8. e3 {[%clk
0:09:54]} 8... a5 {[%clk 0:10:02.6]} 9. Ne5 {[%clk 0:09:51.4]} 9... e6 {[%clk
0:10:02.7]} 10. Be2 {[%clk 0:09:51.8]} 10... Bb4 {[%clk 0:10:01.2]} 11. O-O
{[%clk 0:09:53.2]} 11... O-O {[%clk 0:10:02.1]} 12. Qb3 {[%clk 0:09:53.2]} 12...
Nfd7 {[%clk 0:09:53.5]} 13. Nd3 {[%clk 0:09:51.8]} 13... Bxd3 {[%clk 0:09:49.3]}
14. Bxd3 {[%clk 0:09:53.7]} 14... e5 {[%clk 0:09:47.7]} 15. Ne4 {[%clk 0:09:50]}
15... exd4 {[%clk 0:09:46.7]} 16. exd4 {[%clk 0:09:51.9]} 16... Nf6 {[%clk
0:09:46.8]} 17. Bg5 {[%clk 0:09:52.3]} 17... Nbd5 {[%clk 0:09:45.3]} 18. Bc2
{[%clk 0:09:22.6]} 18... h6 {[%clk 0:09:44.6]} 19. Bh4 {[%clk 0:09:23.6]} 19...
Re8 {[%clk 0:09:42]} 20. Rad1 {[%clk 0:09:17.7]} 20... g5 {[%clk 0:09:33.5]} 21.
Nxf6+ {[%clk 0:09:16.3]} 21... Qxf6 {[%clk 0:09:35.4]} 22. Bg3 {[%clk 0:09:17]}
22... Rad8 {[%clk 0:09:17]} 23. Qd3 {[%clk 0:09:16.9]} 23... Qg7 {[%clk
0:09:17.2]} 24. Qf5 {[%clk 0:09:04.5]} 24... Bd6 {[%clk 0:09:00.8]} 25. Rfe1
{[%clk 0:09:04.7]} 25... Nf4 {[%clk 0:08:11.9]} 26. Kh1 {[%clk 0:08:59.7]} 26...
Rxe1+ {[%clk 0:07:47.7]} 27. Rxe1 {[%clk 0:09:01.6]} 27... Bb4 {[%clk
0:07:17.8]} 28. Bxf4 {[%clk 0:07:53.1]} 28... Bxe1 {[%clk 0:06:48.1]} 29. Be5
{[%clk 0:07:53.5]} 29... Qg6 {[%clk 0:06:49]} 30. Qf3 {[%clk 0:07:54.9]} 30...
g4 {[%clk 0:06:18.2]} 31. Qe2 {[%clk 0:07:50.4]} 31... Qe6 {[%clk 0:06:02.3]}
32. Qxe1 {[%clk 0:07:46.8]} 32... f6 {[%clk 0:05:18]} 33. Qxa5 {[%clk
0:07:41.9]} 33... Re8 {[%clk 0:05:08.7]} 34. Qc3 {[%clk 0:04:47.9]} 34... Kg7
{[%clk 0:04:35.7]} 35. Qd3 {[%clk 0:04:48.1]} 35... fxe5 {[%clk 0:04:33.2]} 36.
Qh7+ {[%clk 0:04:49]} 36... Kf8 {[%clk 0:04:27.9]} 37. Bg6 {[%clk 0:04:45.6]}
37... Rd8 {[%clk 0:04:21.9]} 38. Qxh6+ {[%clk 0:04:07.7]} 38... Ke7 {[%clk
0:04:18.1]} 39. Qh4+ {[%clk 0:02:51.9]} 39... Qf6 {[%clk 0:04:16]} 40. Qh7+
{[%clk 0:02:51.6]} 40... Kd6 {[%clk 0:04:12.2]} 41. dxe5+ {[%clk 0:01:23.8]}
41... Qxe5 {[%clk 0:02:10.6]} 42. g3 {[%clk 0:00:46.7]} 42... Rf8 {[%clk
0:01:43.2]} 43. Kg2 {[%clk 0:00:40.4]} 43... Qf6 {[%clk 0:01:31.1]} 44. f4
{[%clk 0:00:25.2]} 44... gxf3+ {[%clk 0:01:30.6]} 45. Kf1 {[%clk 0:00:25.6]}
45... Qxb2 {[%clk 0:01:07.5]} 46. Bc2 {[%clk 0:00:26.2]} 46... Qc1+ {[%clk
0:01:06.1]} 47. Kf2 {[%clk 0:00:27.1]} 47... Qd2+ {[%clk 0:01:07]} 48. Kf1
{[%clk 0:00:28.5]} 48... Qe2+ {[%clk 0:01:07.4]} 49. Kg1 {[%clk 0:00:29.9]}
49... Qg2# {[%clk 0:01:07.7]} 0-1

[Event "GrandPrix_30.05"]
[Site "Chess.com"]
[Date "2020.05.30"]
[Round "4"]
[White "GeorgMeier"]
[Black "Glek_Igor"]
[Result "1-0"]
[WhiteElo "2655"]
[BlackElo "2453"]
[TimeControl "600+2"]
[EndTime "9:54:05 PDT"]
[Termination "GeorgMeier won on time"]

1. Nf3 {[%clk 0:10:01.9]} 1... Nf6 {[%clk 0:09:58.5]} 2. g3 {[%clk 0:10:03.1]}
2... g6 {[%clk 0:09:58.8]} 3. Bg2 {[%clk 0:10:04.3]} 3... d5 {[%clk 0:09:57.6]}
4. d4 {[%clk 0:10:04.2]} 4... c6 {[%clk 0:09:57.5]} 5. O-O {[%clk 0:10:02.5]}
5... Bg7 {[%clk 0:09:58.9]} 6. b3 {[%clk 0:10:04.2]} 6... O-O {[%clk 0:09:57.1]}
7. Bb2 {[%clk 0:10:04.2]} 7... a5 {[%clk 0:09:54.1]} 8. c4 {[%clk 0:10:04.9]}
8... a4 {[%clk 0:09:53.7]} 9. e3 {[%clk 0:10:01]} 9... Ne4 {[%clk 0:09:25.8]}
10. Nfd2 {[%clk 0:09:27.7]} 10... Bf5 {[%clk 0:08:44.5]} 11. cxd5 {[%clk
0:09:00.7]} 11... Nxd2 {[%clk 0:08:12.7]} 12. Qxd2 {[%clk 0:08:52.5]} 12... cxd5
{[%clk 0:06:42.5]} 13. bxa4 {[%clk 0:07:06.2]} 13... Bxb1 {[%clk 0:06:39.6]} 14.
Rfxb1 {[%clk 0:07:03.7]} 14... Rxa4 {[%clk 0:06:24.8]} 15. Bc3 {[%clk
0:07:02.5]} 15... Qd7 {[%clk 0:04:42.4]} 16. Qb2 {[%clk 0:06:39.3]} 16... Ra7
{[%clk 0:04:36.9]} 17. Qb5 {[%clk 0:02:59.1]} 17... e6 {[%clk 0:04:34.9]} 18.
Bf1 {[%clk 0:02:58.5]} 18... Rc8 {[%clk 0:01:30.1]} 19. Qb6 {[%clk 0:01:22.7]}
19... Nc6 {[%clk 0:01:24.8]} 20. a4 {[%clk 0:01:01.6]} 20... Bf6 {[%clk
0:01:06.8]} 21. Qb2 {[%clk 0:00:44.5]} 21... Bd8 {[%clk 0:00:54.5]} 22. Bb5
{[%clk 0:00:44.2]} 22... Qc7 {[%clk 0:00:45.1]} 23. Rc1 {[%clk 0:00:44.6]} 23...
Rca8 {[%clk 0:00:33.2]} 24. Rc2 {[%clk 0:00:33.4]} 24... Qb6 {[%clk 0:00:26.8]}
25. Rac1 {[%clk 0:00:31.5]} 25... Na5 {[%clk 0:00:16]} 26. Bb4 {[%clk
0:00:30.5]} 26... Nc4 {[%clk 0:00:11.4]} 27. Rxc4 {[%clk 0:00:26]} 27... dxc4
{[%clk 0:00:11.3]} 28. Bc5 {[%clk 0:00:27.5]} 28... Qa5 {[%clk 0:00:07.6]} 29.
Bxa7 {[%clk 0:00:27.6]} 29... Rxa7 {[%clk 0:00:05.6]} 30. Rxc4 {[%clk
0:00:28.2]} 30... Bf6 {[%clk 0:00:06.7]} 31. Kg2 {[%clk 0:00:27.7]} 31... Kg7
{[%clk 0:00:07]} 32. Qc2 {[%clk 0:00:27.4]} 32... Qb6 {[%clk 0:00:06.5]} 33. Rc7
{[%clk 0:00:25.6]} 33... Ra8 {[%clk 0:00:06.6]} 34. Qc5 {[%clk 0:00:20.2]} 34...
Qxc5 {[%clk 0:00:05.4]} 35. dxc5 {[%clk 0:00:21.6]} 1-0

[Event "GrandPrix_30.05"]
[Site "Chess.com"]
[Date "2020.05.30"]
[Round "4"]
[White "francyIM"]
[Black "anesar92"]
[Result "1-0"]
[WhiteElo "2617"]
[BlackElo "2404"]
[TimeControl "600+2"]
[EndTime "9:54:06 PDT"]
[Termination "francyIM won by resignation"]

1. d4 {[%clk 0:10:01.9]} 1... Nf6 {[%clk 0:09:59]} 2. c4 {[%clk 0:10:02.1]} 2...
e6 {[%clk 0:09:59.3]} 3. Nc3 {[%clk 0:10:02.4]} 3... Bb4 {[%clk 0:09:59.4]} 4.
f3 {[%clk 0:10:03.1]} 4... O-O {[%clk 0:09:54.2]} 5. a3 {[%clk 0:09:51.4]} 5...
Bxc3+ {[%clk 0:09:52.1]} 6. bxc3 {[%clk 0:09:53.3]} 6... Nc6 {[%clk 0:09:51.1]}
7. e4 {[%clk 0:09:53.4]} 7... e5 {[%clk 0:09:46.3]} 8. Be3 {[%clk 0:09:49.1]}
8... d6 {[%clk 0:09:29]} 9. Bd3 {[%clk 0:09:44.6]} 9... Nh5 {[%clk 0:09:29.5]}
10. Ne2 {[%clk 0:09:45.2]} 10... f5 {[%clk 0:09:24]} 11. exf5 {[%clk 0:08:49.2]}
11... Bxf5 {[%clk 0:09:20.3]} 12. O-O {[%clk 0:08:48.6]} 12... Qd7 {[%clk
0:09:08]} 13. Rb1 {[%clk 0:08:42.2]} 13... b6 {[%clk 0:08:57.1]} 14. c5 {[%clk
0:07:13.4]} 14... exd4 {[%clk 0:07:25.9]} 15. cxd4 {[%clk 0:07:11.2]} 15... Rae8
{[%clk 0:06:43.7]} 16. Bf2 {[%clk 0:07:07.7]} 16... Bxd3 {[%clk 0:06:42]} 17.
Qxd3 {[%clk 0:07:06.4]} 17... dxc5 {[%clk 0:06:43]} 18. Rfc1 {[%clk 0:06:58.2]}
18... Nxd4 {[%clk 0:06:19.9]} 19. Nxd4 {[%clk 0:06:57.4]} 19... cxd4 {[%clk
0:06:18.7]} 20. Qc4+ {[%clk 0:06:56.3]} 20... Qf7 {[%clk 0:05:53.3]} 21. Qxc7
{[%clk 0:06:54.4]} 21... Nf4 {[%clk 0:05:53]} 22. Qxf7+ {[%clk 0:06:51.6]} 22...
Rxf7 {[%clk 0:05:52.9]} 23. Rd1 {[%clk 0:06:53.1]} 23... Ne2+ {[%clk 0:05:42.7]}
24. Kf1 {[%clk 0:06:53.3]} 24... Nc3 {[%clk 0:05:43.8]} 25. Re1 {[%clk
0:06:54.9]} 25... Rxe1+ {[%clk 0:04:53.3]} 26. Rxe1 {[%clk 0:06:53.4]} 26... d3
{[%clk 0:04:54.1]} 27. Be3 {[%clk 0:06:31.7]} 27... Re7 {[%clk 0:04:37.1]} 28.
Kf2 {[%clk 0:06:28.7]} 28... Kf7 {[%clk 0:04:21.5]} 29. g3 {[%clk 0:05:56.8]}
29... b5 {[%clk 0:03:26.4]} 30. Bc1 {[%clk 0:03:04.1]} 30... Rc7 {[%clk
0:01:56.6]} 31. Bd2 {[%clk 0:02:32.4]} 31... a5 {[%clk 0:01:35.6]} 32. Ke3
{[%clk 0:02:26.3]} 32... b4 {[%clk 0:01:12.8]} 33. axb4 {[%clk 0:02:26.7]} 33...
axb4 {[%clk 0:01:14.7]} 34. Kxd3 {[%clk 0:02:27.9]} 34... Nd5 {[%clk 0:01:13.4]}
35. Rb1 {[%clk 0:02:19.3]} 35... Rd7 {[%clk 0:01:08.5]} 36. Kc2 {[%clk
0:02:17.7]} 36... Rc7+ {[%clk 0:01:08.5]} 37. Kb3 {[%clk 0:02:18.3]} 37... Ke6
{[%clk 0:01:01.4]} 38. Re1+ {[%clk 0:02:17.9]} 38... Kd6 {[%clk 0:01:00.1]} 39.
Re4 {[%clk 0:02:16.4]} 39... Rf7 {[%clk 0:00:55.2]} 40. f4 {[%clk 0:02:15.3]}
40... Re7 {[%clk 0:00:53.7]} 41. Bxb4+ {[%clk 0:00:40.8]} 41... Nxb4 {[%clk
0:00:53.2]} 42. Rxe7 {[%clk 0:00:41.6]} 42... Kxe7 {[%clk 0:00:49.5]} 43. Kxb4
{[%clk 0:00:42.5]} 43... Kf6 {[%clk 0:00:50.2]} 44. Kc5 {[%clk 0:00:43.7]} 44...
g5 {[%clk 0:00:51.2]} 45. fxg5+ {[%clk 0:00:41.6]} 45... Kxg5 {[%clk 0:00:51.6]}
46. h3 {[%clk 0:00:43]} 46... h5 {[%clk 0:00:46.5]} 47. Kd4 {[%clk 0:00:43.7]}
47... Kf6 {[%clk 0:00:46.5]} 48. Ke4 {[%clk 0:00:44.7]} 48... Ke6 {[%clk
0:00:47.4]} 49. Kf4 {[%clk 0:00:45.6]} 49... Kf6 {[%clk 0:00:48.4]} 50. h4
{[%clk 0:00:46.9]} 1-0

[Event "GrandPrix_30.05"]
[Site "Chess.com"]
[Date "2020.05.30"]
[Round "4"]
[White "econpower"]
[Black "IriBu"]
[Result "1-0"]
[WhiteElo "2225"]
[BlackElo "2231"]
[TimeControl "600+2"]
[EndTime "9:54:08 PDT"]
[Termination "econpower won by checkmate"]

1. c4 {[%clk 0:10:00.8]} 1... e5 {[%clk 0:09:59.8]} 2. g3 {[%clk 0:10:01.5]}
2... Nf6 {[%clk 0:10:00.2]} 3. Bg2 {[%clk 0:10:03.1]} 3... Nc6 {[%clk
0:10:00.9]} 4. Nc3 {[%clk 0:10:03.9]} 4... Bc5 {[%clk 0:10:00.6]} 5. e3 {[%clk
0:10:05.1]} 5... d5 {[%clk 0:10:01.3]} 6. cxd5 {[%clk 0:09:47.2]} 6... Nb4
{[%clk 0:10:02]} 7. d4 {[%clk 0:09:41.6]} 7... exd4 {[%clk 0:10:00.8]} 8. exd4
{[%clk 0:09:42.4]} 8... Be7 {[%clk 0:10:01.8]} 9. Nge2 {[%clk 0:09:41.7]} 9...
Nbxd5 {[%clk 0:09:57.8]} 10. O-O {[%clk 0:09:41.4]} 10... O-O {[%clk 0:09:57.7]}
11. Nf4 {[%clk 0:09:42]} 11... Nxf4 {[%clk 0:09:33.2]} 12. Bxf4 {[%clk
0:09:42.3]} 12... Bd6 {[%clk 0:09:32]} 13. Be3 {[%clk 0:08:41.4]} 13... c6
{[%clk 0:09:19.4]} 14. d5 {[%clk 0:08:40]} 14... cxd5 {[%clk 0:09:01.4]} 15.
Nxd5 {[%clk 0:08:37.6]} 15... Nxd5 {[%clk 0:08:55.3]} 16. Qxd5 {[%clk
0:08:33.4]} 16... Bg4 {[%clk 0:07:15.2]} 17. Qxb7 {[%clk 0:07:18.4]} 17... Rb8
{[%clk 0:07:08.7]} 18. Qxa7 {[%clk 0:07:06.6]} 18... Be5 {[%clk 0:06:52]} 19. a4
{[%clk 0:06:44.6]} 19... Bxb2 {[%clk 0:06:47.8]} 20. Rab1 {[%clk 0:06:34.2]}
20... Qf6 {[%clk 0:06:29.6]} 21. a5 {[%clk 0:06:06.7]} 21... h5 {[%clk
0:06:11.4]} 22. h4 {[%clk 0:05:39.6]} 22... Rfe8 {[%clk 0:05:05.1]} 23. Qc5
{[%clk 0:05:20.2]} 23... Bf5 {[%clk 0:03:53.3]} 24. Rbd1 {[%clk 0:05:11.7]}
24... Re5 {[%clk 0:03:35.7]} 25. Qc7 {[%clk 0:03:59.9]} 25... Rc8 {[%clk
0:03:24.7]} 26. Qb6 {[%clk 0:04:00.6]} 26... Re6 {[%clk 0:03:17.4]} 27. Qb7
{[%clk 0:04:00.7]} 27... Re7 {[%clk 0:03:09.6]} 28. Qb5 {[%clk 0:03:05.6]} 28...
Bg4 {[%clk 0:02:51]} 29. Rb1 {[%clk 0:02:45.9]} 29... Bd4 {[%clk 0:01:32.3]} 30.
Bg5 {[%clk 0:02:46.4]} 30... Qe6 {[%clk 0:00:56.5]} 31. Bxe7 {[%clk 0:02:46.2]}
31... Qxe7 {[%clk 0:00:56.9]} 32. Rbe1 {[%clk 0:02:05.1]} 32... Qd6 {[%clk
0:00:26.3]} 33. Re8+ {[%clk 0:00:48.4]} 33... Rxe8 {[%clk 0:00:26.9]} 34. Qxe8+
{[%clk 0:00:50.3]} 34... Kh7 {[%clk 0:00:28.3]} 35. Qc6 {[%clk 0:00:51.9]} 35...
Qb4 {[%clk 0:00:07.3]} 36. a6 {[%clk 0:00:49.9]} 36... f5 {[%clk 0:00:05.3]} 37.
Bd5 {[%clk 0:00:29.7]} 37... Be2 {[%clk 0:00:05.2]} 38. Bf7 {[%clk 0:00:29.3]}
38... Bxf1 {[%clk 0:00:02.2]} 39. Qg6+ {[%clk 0:00:29.6]} 39... Kh8 {[%clk
0:00:03.2]} 40. Qxh5# {[%clk 0:00:31.5]} 1-0

[Event "GrandPrix_30.05"]
[Site "Chess.com"]
[Date "2020.05.30"]
[Round "4"]
[White "Saqo007"]
[Black "nikosgal"]
[Result "1/2-1/2"]
[WhiteElo "2145"]
[BlackElo "2231"]
[TimeControl "600+2"]
[EndTime "9:54:10 PDT"]
[Termination "Game drawn - insufficient material"]

1. d4 {[%clk 0:10:01.9]} 1... Nf6 {[%clk 0:09:59.5]} 2. c4 {[%clk 0:10:02.3]}
2... e6 {[%clk 0:10:00.6]} 3. Nc3 {[%clk 0:10:03.8]} 3... d5 {[%clk 0:10:00.7]}
4. Nf3 {[%clk 0:10:02.5]} 4... dxc4 {[%clk 0:09:58.6]} 5. e4 {[%clk 0:09:58.2]}
5... b5 {[%clk 0:09:59.6]} 6. e5 {[%clk 0:09:58.5]} 6... Nd5 {[%clk 0:10:00.4]}
7. Nxb5 {[%clk 0:09:58.4]} 7... Nb6 {[%clk 0:10:01.5]} 8. Nc3 {[%clk 0:09:58]}
8... c5 {[%clk 0:09:53.5]} 9. dxc5 {[%clk 0:09:57.6]} 9... Qxd1+ {[%clk
0:09:52.7]} 10. Nxd1 {[%clk 0:09:59.5]} 10... Bxc5 {[%clk 0:09:53.7]} 11. Be3
{[%clk 0:09:58]} 11... N8d7 {[%clk 0:09:46.5]} 12. Rc1 {[%clk 0:09:45.4]} 12...
Ba6 {[%clk 0:09:47.1]} 13. Bxc5 {[%clk 0:09:12]} 13... Nxc5 {[%clk 0:09:47.1]}
14. Ne3 {[%clk 0:09:13.2]} 14... Rc8 {[%clk 0:09:00.8]} 15. Nd2 {[%clk
0:08:40.5]} 15... O-O {[%clk 0:08:34.1]} 16. Ndxc4 {[%clk 0:08:38.1]} 16... Rfd8
{[%clk 0:08:10.5]} 17. b3 {[%clk 0:08:20.5]} 17... Ncd7 {[%clk 0:08:10.5]} 18.
f4 {[%clk 0:08:15.9]} 18... Nd5 {[%clk 0:08:09.9]} 19. Rd1 {[%clk 0:07:51.9]}
19... Bxc4 {[%clk 0:07:52.2]} 20. Nxc4 {[%clk 0:07:35.7]} 20... Nxf4 {[%clk
0:07:52.4]} 21. Rd6 {[%clk 0:07:04.1]} 21... Ng6 {[%clk 0:07:43.2]} 22. Ra6
{[%clk 0:07:04.1]} 22... Rc7 {[%clk 0:07:36.9]} 23. Ra5 {[%clk 0:07:04.9]} 23...
Nc5 {[%clk 0:07:24.3]} 24. Be2 {[%clk 0:06:57.7]} 24... Rd5 {[%clk 0:07:24.9]}
25. O-O {[%clk 0:04:39.5]} 25... Nxe5 {[%clk 0:07:24.8]} 26. Nxe5 {[%clk
0:04:41.4]} 26... Rxe5 {[%clk 0:07:25.3]} 27. Bf3 {[%clk 0:04:43]} 27... Nd7
{[%clk 0:07:18.6]} 28. Ra6 {[%clk 0:04:38.6]} 28... Kf8 {[%clk 0:07:17.2]} 29.
b4 {[%clk 0:04:31.9]} 29... Ke7 {[%clk 0:07:16.5]} 30. a4 {[%clk 0:04:33]} 30...
Nb8 {[%clk 0:07:14.8]} 31. Ra5 {[%clk 0:04:28.4]} 31... Rxa5 {[%clk 0:07:15.4]}
32. bxa5 {[%clk 0:04:30.3]} 32... Nd7 {[%clk 0:07:14.5]} 33. Rb1 {[%clk
0:04:22.2]} 33... Nc5 {[%clk 0:07:15.1]} 34. Rb4 {[%clk 0:04:10.2]} 34... f5
{[%clk 0:07:11.4]} 35. Kf2 {[%clk 0:04:05.5]} 35... e5 {[%clk 0:07:11.5]} 36.
Be2 {[%clk 0:04:03.2]} 36... Kd6 {[%clk 0:07:11.1]} 37. g3 {[%clk 0:03:49.9]}
37... Rb7 {[%clk 0:07:11]} 38. Rb5 {[%clk 0:03:48.6]} 38... Rc7 {[%clk
0:07:04.7]} 39. Rb4 {[%clk 0:03:42]} 39... Ne4+ {[%clk 0:07:04.6]} 40. Kf1
{[%clk 0:03:34.6]} 40... Rc1+ {[%clk 0:07:03.8]} 41. Kg2 {[%clk 0:03:35.6]}
41... Rc2 {[%clk 0:07:05.1]} 42. Kf1 {[%clk 0:03:36.7]} 42... Kc5 {[%clk
0:06:48.2]} 43. Rb7 {[%clk 0:03:31]} 43... Kd4 {[%clk 0:05:59.4]} 44. Rd7+
{[%clk 0:03:30.1]} 44... Kc3 {[%clk 0:06:00.4]} 45. Rxa7 {[%clk 0:03:19]} 45...
Ra2 {[%clk 0:06:00]} 46. Rc7+ {[%clk 0:03:14.8]} 46... Kd4 {[%clk 0:05:53]} 47.
Rd7+ {[%clk 0:03:14.5]} 47... Kc5 {[%clk 0:05:50.1]} 48. Rxg7 {[%clk 0:03:04.9]}
48... Rxa4 {[%clk 0:05:48.9]} 49. a6 {[%clk 0:03:05.6]} 49... h6 {[%clk
0:05:43.5]} 50. a7 {[%clk 0:03:05.7]} 50... Kb6 {[%clk 0:05:40.6]} 51. Re7
{[%clk 0:02:57.2]} 51... Rxa7 {[%clk 0:05:18.6]} 52. Rxe5 {[%clk 0:02:48.1]}
52... Ra1+ {[%clk 0:05:19.3]} 53. Kg2 {[%clk 0:02:48.2]} 53... Ra2 {[%clk
0:05:20.4]} 54. Kf3 {[%clk 0:02:47.9]} 54... Ra3+ {[%clk 0:05:05.5]} 55. Kf4
{[%clk 0:02:47.8]} 55... Nd6 {[%clk 0:04:51]} 56. Re6 {[%clk 0:02:41.7]} 56...
Kc5 {[%clk 0:04:52.3]} 57. Rxh6 {[%clk 0:02:37.6]} 57... Ra4+ {[%clk 0:04:53.5]}
58. Kf3 {[%clk 0:02:28.9]} 58... Kd5 {[%clk 0:04:53.7]} 59. Rh8 {[%clk
0:02:18.7]} 59... Ke5 {[%clk 0:04:51.9]} 60. Rh7 {[%clk 0:01:48.8]} 60... Ne4
{[%clk 0:04:45.1]} 61. Re7+ {[%clk 0:01:34.8]} 61... Kf6 {[%clk 0:04:45]} 62.
Rd7 {[%clk 0:01:09.5]} 62... Ra3+ {[%clk 0:04:32.8]} 63. Rd3 {[%clk 0:01:00.5]}
63... Ra2 {[%clk 0:04:32.9]} 64. h4 {[%clk 0:00:51.2]} 64... Ke5 {[%clk
0:04:28.3]} 65. Re3 {[%clk 0:00:41.3]} 65... Ra7 {[%clk 0:04:22.3]} 66. Bd3
{[%clk 0:00:40.1]} 66... Kd4 {[%clk 0:04:03.2]} 67. Bxe4 {[%clk 0:00:41.1]}
67... fxe4+ {[%clk 0:04:03.8]} 68. Kf2 {[%clk 0:00:42.7]} 68... Rf7+ {[%clk
0:03:40.5]} 69. Ke2 {[%clk 0:00:42.7]} 69... Rb7 {[%clk 0:03:41.3]} 70. Ra3
{[%clk 0:00:39.6]} 70... Rb2+ {[%clk 0:03:42.1]} 71. Ke1 {[%clk 0:00:33.3]}
71... Rh2 {[%clk 0:03:42.3]} 72. Kf1 {[%clk 0:00:28.3]} 72... e3 {[%clk
0:03:41.8]} 73. Ra4+ {[%clk 0:00:14.4]} 73... Kd3 {[%clk 0:03:42.6]} 74. Ra3+
{[%clk 0:00:15.5]} 74... Ke4 {[%clk 0:03:42.2]} 75. Ra8 {[%clk 0:00:14]} 75...
Kf3 {[%clk 0:03:40.6]} 76. Rf8+ {[%clk 0:00:14.2]} 76... Kxg3 {[%clk 0:03:41.8]}
77. h5 {[%clk 0:00:13.9]} 77... Rxh5 {[%clk 0:03:24.1]} 78. Ke2 {[%clk
0:00:14.9]} 78... Re5 {[%clk 0:03:23.6]} 79. Rf3+ {[%clk 0:00:16.2]} 79... Kg4
{[%clk 0:03:25]} 80. Rxe3 {[%clk 0:00:18.1]} 80... Rxe3+ {[%clk 0:03:26.2]} 81.
Kxe3 {[%clk 0:00:20]} 1/2-1/2